Cogmind - Beta 16.1 @@@ ROGUE MODE // 2026.04.14 @ 22:19:01 Player: lukecog Result: Destroyed by G-34 Mercenary with Small Laser Performance ------------- Evolutions (0) 0 Regions Visited (1) 200 Robots Destroyed (1) 5 Value Destroyed (34) 34 Prototype IDs (0) 0 Alien Tech Used (0) 0 Bonus (0) 0 TOTAL SCORE: 239 Bonus ------- None Cogmind --------- Core Integrity 0/250 Matter 283/300 Energy 62/100 System Corruption 0% Temperature Cool (36) Movement Core (150) Ox2 Location -10/Materials Parts ------- > --- POWER (1) -------- (None) > --- PROPULSION (2) --- (None) > --- UTILITY (2) ------ Small Storage Unit > --- WEAPON (2) ------- Beam Cannon Light Assault Rifle > --- INVENTORY (8) ---- Small Storage Unit Structural Scanner Sensor Array Peak State ------------ > --- POWER ------------ Light Ion Engine > --- PROPULSION ------- Aluminum Leg Aluminum Leg > --- UTILITY ---------- Small Storage Unit Sensor Array > --- WEAPON ----------- Beam Cannon Light Assault Rifle > --- INVENTORY -------- Small Storage Unit Structural Scanner Sensor Array EM Pulse Gun [Rating: 7] Favorites ----------- Power Light Ion Engine Engine Light Ion Engine Propulsion Aluminum Leg Leg Aluminum Leg Utility Small Storage Unit Device Sensor Array Storage Small Storage Unit Weapon Light Assault Rifle Energy Gun Small Laser Energy Cannon Beam Cannon Ballistic Gun Light Assault Rifle Build | -11 -10 ------- Run | Yrd Mat Slots Evolved . | . . Power . | . . Propulsion . | . . Utility . | . . Weapon . | . . Parts Attached 11 | 4 7 Power 1 | 1 . Engine 1 | 1 . Core . | . . Reactor . | . . Propulsion 2 | 2 . Treads . | . . Leg 2 | 2 . Wheel . | . . Hover . | . . Flight . | . . Utility 4 | . 4 Device 2 | . 2 Storage 2 | . 2 Processor . | . . Hackware . | . . Protection . | . . Artifact . | . . Weapon 4 | 1 3 Energy Gun 2 | . 2 Energy Cannon 1 | . 1 Ballistic Gun 1 | 1 . Ballistic Cannon . | . . Launcher . | . . Special Weapon . | . . Impact Weapon . | . . Slashing Weapon . | . . Piercing Weapon . | . . Special Melee Weapon . | . . Unidentified Prototypes . | . . Parts Lost 6 | . 6 Power 1 | . 1 Propulsion 2 | . 2 Utility 1 | . 1 Weapon 2 | . 2 Highest Loss Streak 6 | . 6 To Critical Strikes . | . . Average Backups 2 | . 3 Power . | . . Propulsion . | . . Utility 1 | . 2 Weapon 1 | . 1 Tool/Special . | . . Unused Backups 1 | . 1 Power . | . . Propulsion . | . . Utility 1 | . 1 Weapon . | . . Tool/Special . | . . Average Slot Usage (%) 77 | . 77 Engine 12 | . 12 Leg 25 | . 25 Device 9 | . 9 Storage 11 | . 11 Energy Gun 2 | . 2 Energy Cannon 4 | . 4 Ballistic Gun 11 | . 11 Peak Build Rating 7 | 4 7 Average Rating 4 | 3 5 On Entrance 2 | . 4 Avg Prop Armor Cover (%) . | . . Naked Turns . | . . Heaviest Build 14 | 4 14 Greatest Support 20 | 20 20 Greatest Overweight (x) 1 | . 1 Average Overweight (x) . | . . Largest Inventory Capacity 8 | 5 8 Average Capacity 6 | 5 7 Most Carried 7 | 2 7 Average Carried 2 | . 3 Final Capacity 8 | 5 8 Final Carried 3 | 1 3 Class Distribution -------------------- 100% | Mutant Dominant Class ---------------- Mutant | -10/Materials Resources | -11 -10 ----------- Run | Yrd Mat Matter Collected 311 | 193 118 Remotely . | . . Salvage Created 37 | . 37 Parts 1 | . 1 Haulers Intercepted . | . . Recyclers Shooed . | . . Parts Field Recycled . | . . Retrieved Matter . | . . Parts Self-Destructed . | . . Prevented . | . . Parts Restored . | . . Kills | -11 -10 ------- Run | Yrd Mat Combat Hostiles Destroyed 1 | . 1 Cannons 1 | . 1 Classes Destroyed 1 | . 1 Grunt 1 | . 1 Best Kill Streak 1 | . 1 Combat Bots Only 1 | . 1 Max Kills in Single Turn 1 | . 1 Gunslinging . | . . Exploded . | . . Melee . | . . Uniques/NPCs Destroyed . | . . Combat | -11 -10 -------- Run | Yrd Mat Hostile Shots Fired 91 | . 91 Missed 25 | . 25 Hits 66 | . 66 Projectile 66 | . 66 Critical Strikes 3 | . 3 Damage Taken 845 | . 845 Core 254 | . 254 Absorbed by Shields . | . . Core Remaining (%) 100 | 100 . Volleys Fired 15 | . 15 Largest 2 | . 2 Hottest 80 | . 80 Shots Fired 28 | . 28 Gun 19 | . 19 Cannon 9 | . 9 Launcher . | . . Special . | . . Kinetic 10 | . 10 Thermal 14 | . 14 Explosive . | . . Electromagnetic 4 | . 4 Robot Hit Streak 6 | . 6 Robot Miss Streak 3 | . 3 Penetration Max . | . . Secondary Targets . | . . Shots Hit Robots 16 | . 16 Core Hits 8 | . 8 Critical Kills . | . . Critical Parts Destroyed . | . . Critical Strikes . | . . Melee Attacks . | . . Impact . | . . Slashing . | . . Piercing . | . . Sneak Attacks . | . . Combat Hostiles . | . . Follow-up Attacks . | . . Damage Inflicted 236 | . 236 Guns 122 | . 122 Cannons 104 | . 104 Explosions . | . . Melee . | . . Ramming 10 | . 10 Kinetic 65 | . 65 Thermal 136 | . 136 Explosive . | . . Electromagnetic 25 | . 25 Impact . | . . Slashing . | . . Piercing . | . . Highest Corruption . | . . Average Corruption . | . . Corruption Purged . | . . Corruption Blocked . | . . Overload Shots . | . . Overflow Damage . | . . Projectiles . | . . Explosions . | . . Melee . | . . Knockbacks . | . . Impact . | . . Kinetic . | . . Secondary . | . . Self-Inflicted Damage . | . . Shots . | . . Rammed . | . . Targets Rammed 8 | . 8 Kicked 8 | . 8 Crushed . | . . Highest Temperature 174 | . 174 Average Temperature 67 | . 67 Received Heat Transfer 522 | . 522 Siege Activations . | . . Martial Activations . | . . Shielding Activations . | . . Robots Disrupted . | . . Combat Hostiles . | . . Robots Corrupted . | . . Combat Hostiles . | . . Parts Fried . | . . Impact Corruptions . | . . Robots Melted . | . . Combat Hostiles . | . . Parts Melted . | . . Heat Transferred 297 | . 297 Parts Sabotaged . | . . Parts Stolen . | . . Parts Stripped . | . . Power Chain Reactions . | . . Alert | -11 -10 ------- Run | Yrd Mat Maximum Alert Level . | . . Low Security (%) 100 | 100 100 Level 1 . | . . Level 2 . | . . Level 3 . | . . Level 4 . | . . Level 5 . | . . High Security . | . . Max Security . | . . Peak Influence 20 | . 20 Initial . | . . Average 1 | . 1 Influence Increases 20 | . 20 Destroy 0b10 Robot/C 20 | . 20 Influence Decreases 20 | . 20 Time Decay 10 | . 10 Lost Part 10 | . 10 Squads Dispatched 2 | . 2 Investigation 1 | . 1 Extermination . | . . Reinforcement 1 | . 1 Assault . | . . Garrison . | . . Intercept . | . . Searches Triggered . | . . Construction Impeded . | . . Haulers Reinforced . | . . Active Scanning Responses . | . . Cargo Convoy Interrupts . | . . Stealth | -11 -10 --------- Run | Yrd Mat Distress Signals 2 | . 2 Communications Jammed . | . . Distress Signals . | . . Times Spotted 11 | . 11 Peak Tracking Total 9 | . 9 Tactical Retreats . | . . Traps | -11 -10 ------- Run | Yrd Mat Traps Triggered 1 | . 1 Indirectly . | . . Trap Hack Attempts . | . . Triggered . | . . Disarmed . | . . Reprogrammed . | . . Reused . | . . Traps Extracted . | . . Installed . | . . Triggered . | . . Machines | -11 -10 ---------- Run | Yrd Mat Machines Disabled . | . . Max in Single Turn . | . . Machines Repaired . | . . Machines Dismantled . | . . Machines Sabotaged . | . . Overloaded Fab Kills . | . . Hacking | -11 -10 --------- Run | Yrd Mat Machines Accessed . | . . Terminals . | . . Fabricators . | . . Repair Stations . | . . Recycling Units . | . . Scanalyzers . | . . Garrison Access . | . . Total Hacks . | . . Successful . | . . Failed . | . . Catastrophic . | . . Database Lockouts . | . . Manual . | . . Terminals . | . . Fabricators . | . . Repair Stations . | . . Recycling Units . | . . Scanalyzers . | . . Garrison Access . | . . Terminal Hacks . | . . Fabricator Hacks . | . . Repair Station Hacks . | . . Recycling Unit Hacks . | . . Scanalyzer . | . . Garrison Access Hacks . | . . Unauthorized Hacks . | . . Terminals . | . . Fabricators . | . . Repair Stations . | . . Recycling Units . | . . Scanalyzers . | . . Garrison Access . | . . Data Cores Recovered . | . . Used . | . . Hacking Detections . | . . Full Trace Events . | . . Feedback Events . | . . Feedback Blocked . | . . Robot Schematics Acquired . | . . Robots Built . | . . Authchips . | . . Time . | . . Total Robot Build Rating . | . . Part Schematics Acquired . | . . Parts Built . | . . Authchips . | . . Time . | . . Total Part Build Rating . | . . Part Studies Acquired . | . . Parts Repaired . | . . Time . | . . Parts Recycled . | . . Recycled Matter . | . . Retrieved Matter . | . . Retrieved Components . | . . Parts Scanalyzed . | . . Part Schematics Acquired . | . . Parts Damaged . | . . Bothacking | -11 -10 ------------ Run | Yrd Mat Used RIF Installer . | . . Robots Hacked . | . . Non-combat . | . . Combat . | . . Robot Hacks Applied . | . . Relay Couplers Released . | . . Fabnet Peak Effective % . | . . Robots Rewired . | . . Allies Hacked . | . . Hacks Repelled . | . . Allies | -11 -10 -------- Run | Yrd Mat Total Allies . | . . Largest Group . | . . Highest-Rated Group . | . . Highest-Rated Ally . | . . Total Orders . | . . Ally Attacks . | . . Total Damage . | . . Kills . | . . Allies Corrupted . | . . Allies Melted . | . . Intel | -11 -10 ------- Run | Yrd Mat Active Infowar (turns) 138 | . 138 Sensors 138 | . 138 Robot Analysis Total . | . . Derelict Logs Recovered . | . . Drone Launches . | . . Drone Recoveries . | . . Exploration | -11 -10 ------------- Run | Yrd Mat Turns Passed 272 | 69 203 Spaces Moved 174 | 62 112 Core 19 | 19 . Treads . | . . Legs 155 | 43 112 Wheels . | . . Hover . | . . Flight . | . . Fastest Speed 50 | 50 120 Average Speed 113 | 98 121 Slowest Speed 190 | 120 190 Overloaded Moves . | . . Propulsion Burnouts . | . . Robots Hopped . | . . Potential Cave-ins . | . . Cave-ins Triggered . | . . Exploration Rate (%) 14 | 3 25 Regions Visited 1 Branch Regions . Pre-discovered Areas . | . . Known Exits Taken . | . . Unknown Exits Taken 1 | 1 . Scrap Searched . | . . Spaces Dug . | . . Terrain Destroyed . | . . Melee . | . . Projectile . | . . AOE . | . . Terrain Rammed . | . . Walls Destroyed . | . . Machines Disabled . | . . Actions | -11 -10 --------- Run | Yrd Mat Total 225 | 70 155 Wait . | . . Move 173 | 61 112 Hop . | . . Pick Up 12 | 5 7 Fast Attach . | . . Attach 13 | 4 9 Detach 4 | . 4 Swap . | . . Drop . | . . Fire 15 | . 15 Melee . | . . Ram . | . . Kick 8 | . 8 Crush . | . . Escape Stasis . | . . Rewire . | . . Trap . | . . Miscellaneous . | . . Route ------- -11/Scrapyard -10/Materials (discovered 1 exit: [*Min]) History --------- Turn | Location | Event 9 | -11/Scrapyard | Discovered new exit (range 15) 70 | -11/Scrapyard | Entered Materials 186 | -10/Materials | Discovered new exit (range 12) 256 | -10/Materials | Core integrity fell below 50% 262 | -10/Materials | Core integrity fell below 20% 273 | -10/Materials | Destroyed by G-34 Mercenary with Small Laser Last Messages --------------- Critical hit (Burn: +37). G-34 Mercenary destroyed. Acquired Sml. Laser. Acquired 22 matter. Acquired 10 matter. Acquired 5 matter. W-16 Scout sends out distress signal. Aluminum Leg destroyed. U-05 Engineer lays Concrete. Lgt. Ion Engine destroyed. EM Pulse Gun destroyed. Sensor Array destroyed. Kicked G-47 Trooper. G-34 Mercenary IFF system glitched. Kicked G-47 Trooper. Kicked G-47 Trooper out of the way. Kicked G-47 Trooper. Sml. Laser destroyed. Aluminum Leg destroyed. Acquired 4 matter. Map ----- +----------------------------------------------------+ | ????????????# * #??????# # | | ????????????# #??????# """ # | | ????????????# #??##### """ # | | ????????????# #??# # """ # | | ????????????# % #??# # # | | ??????####### #??# # """ # | | ??????# ###+########## + """ # | | ??????#= # """ # | | ??????# # # | | ??????# # """ # | | ??????# ##########+####### """ # | | ???######+####### ## """ # | | ???# # """ ## # | | ???#"" """"" # """ ########? | | ???#"T """"" # """ #???????? | | ???#"" """"" # !! """ #???????? | | ???# # ! """ #???????? | | ???#######+####+# !! #???????? | | ????#### #############???????? | | =% ###### #????????? | | ! ! #????????? | | " #????????? | | ##### """ #????????? | | |"?????# "Y" ##### rr #????????? | | ???????# #??####g#####??????? | | ???????# #??#g %@ #??????? | | ???????# /g #??????? | | ???????# #### #??????? | | ???????##T## #??#! #??????? | | ????????##?# #??# #??????? | | ???????????# #??# g #??????? | | ??????????? #??# !![#??????? | | ??????????? #??# ![ #??????? | | ?????????? ???+ ![ #??????? | | ???????????? ??###########??????? | | ?????????????? ???????????????????? | | ????????????????????????????????????? | | ????????????????????????????????????? | | ????????????????????????????????????? | | ????????????????????????????????????? | | ????????????????????????????????????? | | ????????????????????????????????????? | | ????????????????????????????????????? | | ????????????????????????????????????? | | ????????????????????????????????????? | | ????????????????????????????????????? | | ????????????????????????????????????? | | ????????????????????????????????????? | | ????????????????????????????????????? | | ????????????????????????????????????? | +----------------------------------------------------+ Best States ------------- Heat Dissipation 25 Energy Generation 10 Energy Capacity 125 Matter Stores 300 Matter Capacity 300 Sight Range 16 Robot Scan Range 14 Terrain Scan Density 10 Evasion (%) 55 Item Schematics ----------------- None Robot Schematics ------------------ None Fabricated ------------ Nothing Repaired ---------- Nothing Studied --------- None Alien Tech Used ----------------- None Achievements -------------- DATA ERROR: Steam Global Achievement% I Have A Map? Challenges ------------ None Game ------ Seed 123 Manual? 1 Play Time 00:20:49 Cumulative 0.8 hours Start 2026.04.09 @ 22:09:46 End 2026.04.14 @ 22:19:01 Sessions 2 Manual Loads 0 Difficulty Rogue Special Mode None Game No. 2 Rogue 2 Adventurer 0 Explorer 0 Win Type - Total 0 Types 0/0/0/0/0/0/0/0/0/0 Lore% 0 Gallery% 1 Achievement% 2 Wizard Run 0 Options --------- Layout 1 ASCII 0 Keyboard 1 Movement Arrows Keybinds 0 Fullscreen 1 Font 24/Smallcaps Map View 50x35 Zoom Use 0% Tactical HUD 0 Map Filters NONE Filters NONE Steam 1 RUN: 5898ae6e-05ac-4236-bead-0fd94e0aa7ab